bitfinex-derivatives/quotes_ETHF0:USTF0_20250918
["timestamp","ask_amount","ask_price","bid_price","bid_amount"]
[1758208513691,0.222,4592.1,4592.0,1.1175]
[1758208514386,0.4975,4592.1,4592.0,1.1175]
[1758208514991,0.7638,4592.1,4592.0,1.1175]
[1758208515298,0.4975,4592.1,4592.0,1.1175]
[1758208515800,0.222,4592.1,4592.0,1.1175]
[1758208516096,3.2078,4592.4,4592.1,0.4198]
[1758208516292,3.2078,4592.4,4591.3,0.02178056]
[1758208516293,0.2248,4592.1,4591.3,0.02178056]
[1758208516490,0.5418,4591.4,4591.3,0.70848056]
[1758208516690,0.224,4591.5,4591.3,0.98438056]
[1758208516887,0.224,4591.5,4591.4,0.6867]
[1758208517089,0.224,4591.5,4591.4,0.9626]
[1758208517298,0.7658,4591.5,4591.4,0.9626]
[1758208517487,0.224,4591.5,4591.4,0.9626]
[1758208518099,3.9736,4591.5,4591.3,0.02178056]
[1758208518292,3.2078,4591.5,4591.4,0.5428]
[1758208518595,3.9736,4592.0,4591.9,0.6867]
[1758208518993,3.9736,4592.0,4591.9,0.4198]
[1758208519194,4.1984,4592.0,4591.9,0.4198]
[1758208519604,4.1984,4592.0,4590.5,0.0217]
[1758208519605,0.2755,4591.1,4590.5,0.0217]
[1758208519900,3.2078,4590.6,4590.5,0.1549]
[1758208520096,44.2328,4590.6,4590.5,0.4218]
[1758208520398,44.2328,4590.6,4590.5,0.8416]
[1758208520596,3.4328,4590.6,4590.5,0.8416]
[1758208520898,3.2078,4590.6,4590.5,1.1175]
[1758208521093,3.4328,4590.6,4590.5,1.1175]
[1758208521302,3.4328,4590.6,4590.5,0.8416]
[1758208521495,3.4328,4590.6,4590.5,0.5747]
[1758208521891,3.4328,4590.6,4590.5,1.1175]
[1758208522699,3.2078,4590.6,4590.5,1.1175]
[1758208522899,3.4328,4590.6,4590.5,1.1175]
[1758208523603,3.2078,4590.6,4590.5,1.1175]
[1758208523803,0.225,4590.6,4590.5,5.1175]
[1758208524003,0.225,4590.6,4590.5,8.3253]
[1758208524697,0.225,4590.6,4590.5,1.1175]
[1758208525388,0.225,4590.6,4590.5,0.5747]
[1758208526003,0.225,4590.6,4590.5,0.8416]
[1758208526807,0.225,4590.6,4590.5,1.1175]
[1758208527115,35.282,4591.0,4590.6,0.5428]
[1758208527302,35.282,4591.0,4590.9,0.6867]
[1758208527499,35.507,4591.0,4590.9,0.9626]
[1758208527702,35.282,4591.0,4590.9,0.9626]
[1758208527896,35.507,4591.0,4590.9,0.9626]
[1758208528407,35.507,4591.0,4590.9,0.4198]
[1758208529501,35.282,4591.0,4590.9,0.6867]
[1758208529702,35.507,4591.0,4590.9,0.6867]
[1758208530209,35.507,4591.0,4590.9,0.9626]
[1758208531507,35.507,4591.0,4590.9,0.6867]
[1758208532213,35.507,4591.0,4590.9,0.9626]
[1758208532806,35.282,4591.0,4590.9,0.9626]
[1758208533201,35.507,4591.0,4590.9,4.9626]
[1758208534307,3.2078,4591.9,4591.8,0.9626]
[1758208534610,3.2078,4592.3,4592.2,0.6867]
[1758208534807,3.4328,4592.3,4592.2,0.9626]
[1758208535107,3.2078,4592.3,4592.2,0.9626]
[1758208535309,3.4328,4592.3,4592.2,0.9626]
[1758208535699,3.4328,4592.3,4592.2,0.4198]
[1758208535912,7.4328,4592.3,4592.2,0.4198]
[1758208536406,3.4328,4592.3,4592.2,0.4198]
[1758208537207,3.96978115,4592.3,4592.2,0.4198]
[1758208537708,4.21869262,4592.3,4592.2,0.4198]
[1758208538501,8.21869262,4592.3,4592.2,0.4198]
[1758208539306,4.21869262,4592.3,4592.0,0.1549]
[1758208539613,1.00365262,4592.2,4591.7,0.4136]
[1758208539911,3.2078,4591.8,4591.5,0.5685]
[1758208540212,41.81089262,4591.7,4591.6,0.4136]
[1758208542803,45.81089262,4591.7,4591.0,0.5685]
[1758208543010,3.2078,4591.1,4591.0,0.5685]
[1758208543208,4.21990179,4591.1,4591.0,0.5685]
[1758208543604,44.79490179,4591.1,4591.0,0.8363]
[1758208543810,44.79490179,4591.1,4591.0,5.1191]
[1758208543811,3.99490179,4591.1,4591.0,5.1191]
[1758208544012,4.21990179,4591.1,4591.0,5.1191]
[1758208544409,0.78710179,4591.1,4591.0,5.1191]
[1758208544617,0.76198115,4591.1,4591.0,5.1191]
[1758208544811,3.2078,4591.9,4591.0,5.1191]
[1758208545117,0.47537527,4591.8,4591.7,0.9642]
[1758208545618,0.47537527,4591.8,4591.7,4.9642]
[1758208546612,0.25037527,4591.8,4591.7,4.9642]
[1758208546810,0.47537527,4591.8,4591.7,4.9642]
[1758208547011,38.5028,4592.5,4591.7,4.9642]
[1758208547323,0.225,4592.4,4592.3,0.9642]
[1758208547812,35.295,4592.5,4592.3,0.5506]
[1758208548213,0.225,4592.4,4592.3,0.5506]
[1758208548414,35.295,4592.5,4592.4,0.9642]
[1758208548814,35.52,4592.5,4592.4,0.9642]
[1758208549709,35.295,4592.5,4592.4,0.9642]
[1758208550017,35.52,4592.5,4592.4,0.9642]
[1758208550214,3.2078,4593.0,4592.5,0.16]
[1758208550417,3.2078,4593.0,4592.9,0.9642]
[1758208550723,3.4328,4593.0,4592.9,0.4136]
[1758208551425,3.2078,4593.5,4593.4,0.9642]
[1758208551722,3.4328,4593.5,4593.4,0.9642]
[1758208552221,3.2078,4593.5,4593.4,0.4136]
[1758208552522,3.2078,4593.5,4593.4,0.9642]
[1758208552722,3.4328,4593.5,4593.4,0.9642]
[1758208552918,3.4328,4593.5,4593.4,0.6814]
[1758208553124,3.4328,4593.5,4593.4,0.4136]
[1758208553816,3.2078,4593.5,4593.4,0.4136]
[1758208554018,3.4328,4593.5,4593.4,0.4136]
[1758208554424,3.4328,4593.5,4593.4,0.9647]
[1758208555720,3.4328,4593.5,4593.4,0.6814]
[1758208556022,3.4328,4593.5,4593.4,0.4136]
[1758208556818,3.96975365,4593.5,4593.0,0.16]
[1758208557024,0.53695365,4593.4,4593.1,0.4197]
[1758208557325,0.224,4593.3,4593.0,0.16]
[1758208557523,0.76095365,4593.2,4593.1,0.9898]
[1758208558029,0.224,4593.2,4593.1,0.9898]
[1758208560622,35.292,4594.0,4593.2,0.4197]
[1758208560827,35.292,4594.0,4593.9,0.9898]
[1758208561024,36.29936186,4594.0,4593.9,0.9898]
[1758208561225,36.05288197,4594.0,4593.9,0.9898]
[1758208562227,36.05288197,4594.0,4593.9,0.4197]
[1758208562428,36.29930126,4594.0,4593.5,0.1717]
[1758208562626,0.78330126,4593.9,4593.6,0.4197]
[1758208562825,0.78330126,4593.9,4593.5,0.1717]
[1758208562826,1.00730126,4593.8,4593.5,0.1717]
[1758208563024,0.53688197,4593.7,4593.5,0.1717]
[1758208563226,3.4318,4593.6,4593.5,0.5914]
[1758208563834,3.4318,4593.6,4593.5,0.8782]
[1758208564039,3.4318,4593.6,4593.5,1.1615]
[1758208565336,0.224,4593.6,4593.5,1.1615]
[1758208566434,0.224,4593.7,4593.6,0.6639]
[1758208566634,0.224,4593.7,4593.6,0.9304]
[1758208573139,0.224,4593.7,4593.6,0.3938]
[1758208573542,0.75992865,4593.7,4593.6,0.6639]
[1758208573746,0.75992865,4593.7,4593.6,0.9304]
[1758208573945,0.224,4593.7,4593.6,0.9304]
[1758208574147,35.292,4594.0,4593.7,0.3938]
[1758208574343,0.99813649,4593.9,4593.8,0.9304]
[1758208575050,0.99813649,4593.9,4593.8,0.3938]
[1758208575235,0.99813649,4593.9,4593.5,0.1717]
[1758208575542,0.77413649,4593.8,4593.6,0.3938]
[1758208575737,4.20593649,4593.7,4593.6,0.3938]
[1758208576334,0.2075,4593.6,4592.1,3.0933]
[1758208576536,1.28414575,4593.5,4593.4,0.5366]
[1758208576740,0.99834575,4593.5,4593.4,0.5366]
[1758208576946,0.77434575,4593.5,4593.4,0.5366]
[1758208577148,0.99834575,4593.5,4593.4,0.5366]
[1758208577852,0.4156,4593.4,4593.0,0.19]
[1758208578147,3.2078,4593.7,4593.0,0.19]
[1758208578148,0.9859,4593.1,4593.0,0.5583]
[1758208578344,1.74603698,4593.1,4593.0,0.5583]
[1758208578540,1.74603698,4593.1,4593.0,0.9521]
[1758208578739,5.98435418,4593.1,4592.1,0.3938]
[1758208579052,4.1937,4592.2,4592.1,0.6639]
[1758208579248,4.49206765,4592.2,4592.1,0.9304]
[1758208579444,4.25373698,4592.2,4592.1,0.9304]
[1758208579651,5.19205819,4592.2,4592.1,0.9304]
[1758208579839,0.4156,4592.1,4591.5,0.1683]
[1758208580040,0.46219335,4592.0,4591.5,0.1683]
[1758208580247,0.53666756,4591.9,4591.7,0.5366]
[1758208580452,0.224,4591.8,4591.7,0.5366]
[1758208580749,0.224,4591.8,4591.7,0.9304]
[1758208580953,3.2078,4592.2,4592.1,0.9304]
[1758208581144,3.4318,4592.2,4592.1,0.9304]
[1758208582953,3.2078,4592.2,4592.1,0.9304]
[1758208583147,3.4318,4592.2,4592.1,0.9304]
[1758208583553,0.4156,4592.8,4592.1,0.5366]
[1758208583749,3.4936,4593.1,4593.0,0.4384]
[1758208583951,4.25375903,4593.1,4593.0,1.0987]
[1758208584551,4.02975903,4593.1,4593.0,1.0987]
[1758208584753,3.96795903,4593.1,4593.0,1.0987]
[1758208584953,3.4318,4593.1,4593.0,1.0987]
[1758208585355,3.7176,4593.1,4593.0,1.0987]
[1758208585656,3.4318,4593.1,4593.0,1.0987]
[1758208585954,4.95393363,4593.1,4592.5,0.5621]
[1758208586149,4.1937,4592.6,4592.0,0.1683]
[1758208586350,0.9859,4592.1,4592.0,0.6639]
[1758208586554,1.2099,4592.1,4592.0,0.6639]
[1758208587251,0.7943,4592.1,4591.7,0.3938]
[1758208587450,0.2858,4591.8,4591.7,0.6639]
[1758208587651,0.4156,4591.7,4591.6,3.2078]
[1758208587953,0.9859,4591.7,4591.6,3.2078]
[1758208588455,0.9859,4591.7,4591.1,0.3938]
[1758208588654,0.224,4591.8,4591.1,0.6639]
[1758208588655,0.9859,4591.2,4591.1,0.6639]
[1758208588857,0.7943,4591.2,4591.1,0.6639]
[1758208589557,0.7943,4591.2,4591.1,0.9304]
[1758208590748,0.5703,4591.2,4591.1,0.9304]
[1758208590950,3.2078,4591.6,4591.5,1.0987]
[1758208591150,3.4318,4591.6,4591.5,1.0987]
[1758208591356,3.7176,4591.6,4591.5,1.0987]
[1758208591550,3.4936,4591.6,4591.5,1.0987]
[1758208591750,0.5098,4591.6,4591.5,1.0987]
[1758208592753,1.2099,4591.6,4591.5,0.9304]
[1758208593354,4.1937,4591.6,4591.0,0.1683]
[1758208593556,1.2099,4591.5,4591.4,0.6639]
[1758208594550,0.224,4591.5,4591.4,0.9304]
[1758208594950,0.5098,4591.5,4591.4,0.9304]
[1758208596353,0.7851,4591.5,4591.4,0.9304]
[1758208596660,0.4849,4591.5,4591.4,0.9304]
[1758208596854,1.1787,4591.5,4591.4,0.3938]
[1758208597052,1.1787,4591.5,4591.4,0.6658]
[1758208597750,0.5362,4591.1,4591.0,0.8553]
[1758208597946,1.1787,4591.1,4591.0,0.687]
[1758208599658,0.7602,4591.1,4591.0,0.9521]
[1758208600159,0.7602,4591.1,4591.0,1.1169]
[1758208601859,3.2078,4591.8,4591.5,0.1648]
[1758208602153,3.4687,4591.8,4591.7,0.9521]
[1758208602357,3.6927,4591.8,4591.7,0.9521]
[1758208602553,4.3865,4591.8,4591.7,0.9521]
[1758208603057,4.3865,4591.8,4591.1,0.415]
[1758208603660,3.8503,4591.8,4591.1,0.415]
[1758208603856,4.3865,4591.8,4591.7,0.687]
[1758208604156,4.50366687,4591.8,4591.7,0.9521]
[1758208604358,4.92216687,4591.8,4591.7,0.9521]
[1758208605655,4.00436687,4591.8,4591.7,0.9521]
[1758208605863,3.6927,4591.8,4591.7,0.9521]
[1758208606161,4.92253967,4591.8,4591.1,0.415]
[1758208606358,0.2609,4591.2,4591.1,0.9521]
[1758208606558,0.4849,4591.2,4591.1,0.9521]
[1758208606961,3.2078,4591.8,4591.2,0.415]
[1758208607261,1.02104659,4591.7,4591.6,0.9521]
[1758208607965,1.71484659,4591.7,4591.6,0.272]
[1758208608164,1.71484659,4591.7,4591.6,0.687]
[1758208608365,1.95540615,4591.7,4591.6,0.687]
[1758208608567,1.29634659,4591.7,4591.6,0.9521]
[1758208608866,0.53614659,4591.7,4591.6,4.9521]
[1758208609064,38.7507,4592.3,4592.2,0.9521]
[1758208609366,40.0271826,4592.3,4592.2,0.9521]
[1758208609672,0.9547,4591.9,4591.8,0.687]
[1758208609964,1.1787,4591.9,4591.8,0.687]
[1758208610171,0.7602,4591.9,4591.8,0.9521]
[1758208610664,0.224,4591.9,4591.8,0.9521]
[1758208612270,0.4849,4591.9,4591.8,0.9521]
[1758208612668,0.224,4591.9,4591.8,0.9521]
[1758208613868,38.4898,4592.3,4591.9,0.415]
[1758208614069,1.26238718,4592.2,4592.1,0.5371]
[1758208614272,1.02176672,4592.2,4592.1,0.9194]
[1758208614871,1.29106672,4592.2,4592.1,0.9194]
[1758208615367,0.77770063,4592.2,4592.1,0.9194]
[1758208615569,0.76086672,4592.2,4592.1,0.9194]
[1758208616066,1.03036672,4592.2,4592.1,0.9194]
[1758208616268,0.80636672,4592.2,4592.1,0.9194]
[1758208616471,1.03036672,4592.2,4592.1,0.9194]
[1758208616869,1.02936672,4592.2,4592.1,0.9194]
[1758208618263,1.70896672,4592.2,4592.1,0.9194]
[1758208618870,1.29866672,4592.2,4592.1,0.9194]
[1758208619463,0.75986672,4592.2,4592.1,0.9194]
[1758208619660,0.53686672,4592.2,4592.1,0.9194]
[1758208619865,3.2078,4592.3,4592.2,0.3823]
[1758208620170,3.4308,4592.3,4592.2,0.9206]
[1758208620370,0.223,4592.3,4592.2,0.9206]
[1758208620772,0.223,4592.3,4592.2,4.1284]
[1758208620964,0.2695,4593.0,4592.9,0.5383]
[1758208621164,1.07615713,4593.0,4592.9,0.9206]
[1758208621367,1.70945713,4593.0,4592.9,0.9206]
[1758208621568,1.70945713,4593.0,4592.9,0.6443]
[1758208622467,1.48645713,4593.0,4592.9,0.6443]
[1758208622664,0.76035713,4593.0,4592.9,0.9206]
[1758208622972,0.4925,4593.0,4592.9,0.9206]
[1758208623374,36.2381,4593.5,4593.4,0.5383]
[1758208623669,35.7815,4593.5,4593.4,0.9206]
[1758208623867,36.0508,4593.5,4593.4,0.9206]
[1758208624067,35.7815,4593.5,4593.4,0.9206]
[1758208624263,36.0508,4593.5,4593.4,0.9206]
[1758208624567,36.2381,4593.5,4593.4,0.9206]
[1758208624771,36.0508,4593.5,4593.4,0.9206]
[1758208626173,35.7815,4593.5,4593.4,0.9206]
[1758208626366,36.4654,4593.5,4593.4,0.9206]
[1758208627870,36.049,4593.5,4593.4,0.9206]
[1758208628067,35.512,4593.5,4593.4,0.9206]
[1758208628574,3.2078,4593.6,4593.5,1.0959]
[1758208628774,3.9538,4593.6,4593.5,1.0959]
[1758208629263,3.6863,4593.6,4593.5,1.0959]
[1758208629669,3.2078,4593.6,4593.5,1.0959]
[1758208629870,3.2078,4594.1,4593.6,0.4036]
[1758208630077,3.4633,4594.1,4594.0,1.0959]
[1758208630374,3.2078,4594.1,4594.0,5.0959]
[1758208631678,3.2078,4595.1,4595.0,0.1569]
[1758208631872,3.4633,4595.1,4595.0,1.0959]
[1758208632178,3.2078,4595.1,4595.0,1.0959]
[1758208632372,0.4164,4595.8,4595.1,0.4036]
[1758208632373,0.223,4595.2,4595.1,0.4036]
[1758208632577,3.4633,4595.6,4595.5,1.0959]
[1758208632782,3.6863,4595.6,4595.5,1.0959]
[1758208632981,0.4785,4595.6,4595.5,1.0959]
[1758208633282,3.2078,4596.1,4596.0,1.0959]
[1758208634188,3.4633,4596.1,4596.0,1.0959]
[1758208634673,4.1472,4596.1,4596.0,0.939]
[1758208634873,4.1472,4596.1,4596.0,0.6792]
[1758208635474,3.7308,4596.1,4596.0,0.939]
[1758208635675,1.1624,4596.1,4596.0,0.939]
[1758208636384,0.523,4596.1,4596.0,1.0959]
[1758208636583,0.245,4596.3,4596.2,0.5354]
[1758208636778,0.022,4596.3,4596.2,0.939]
[1758208636977,0.022,4596.3,4596.2,4.1468]
[1758208639287,0.022,4596.3,4596.2,8.1468]
[1758208639686,3.4633,4597.3,4597.2,0.939]
[1758208639893,4.1472,4597.3,4597.2,0.939]
[1758208640192,0.2555,4596.8,4596.7,3.7432]
[1758208640388,3.4308,4597.3,4596.8,0.4036]
[1758208640694,4.3702,4597.3,4597.2,0.6792]
[1758208643388,4.3702,4597.3,4597.2,0.939]
[1758208643594,3.9538,4597.3,4597.2,0.939]
[1758208644396,4.3702,4597.3,4597.2,0.939]
[1758208644599,4.1472,4597.3,4597.2,0.939]
[1758208644898,4.3702,4597.3,4597.2,0.939]
[1758208645198,3.9538,4597.3,4597.2,0.939]
[1758208645798,4.1472,4597.3,4597.2,0.939]
[1758208646093,4.1472,4597.3,4597.0,0.1569]
[1758208646094,3.9538,4597.3,4597.0,0.1569]
[1758208646300,0.9394,4597.2,4597.1,0.939]
[1758208646800,0.523,4597.2,4597.1,0.939]
[1758208646996,0.2555,4597.2,4597.1,0.939]
[1758208647194,0.223,4597.5,4597.1,0.939]
[1758208647389,0.6394,4597.5,4597.2,0.4036]
[1758208647595,0.746,4597.5,4597.4,0.2756]
[1758208647791,0.902,4597.5,4597.1,0.4036]
[1758208647997,0.902,4597.5,4596.7,3.2078]
[1758208648206,0.4164,4597.2,4596.8,1.9237]
[1758208648400,0.746,4597.2,4597.1,0.939]
[1758208648596,1.1139,4597.2,4597.1,0.939]
[1758208648793,1.1139,4597.2,4597.1,0.6792]
[1758208649694,0.746,4597.2,4597.1,0.939]
[1758208650303,0.523,4597.2,4597.1,0.939]
[1758208650499,0.223,4597.5,4597.2,0.4036]
[1758208650697,0.4785,4597.5,4597.4,0.5354]
[1758208650897,0.4785,4597.5,4597.4,0.939]
[1758208651103,0.223,4597.6,4597.5,1.0959]
[1758208651303,0.3679,4597.5,4597.0,0.5605]
[1758208651500,0.3679,4597.0,4596.8,2.349]
[1758208651697,0.8909,4596.9,4596.8,2.349]
[1758208652595,0.8909,4596.9,4596.8,1.9454]
[1758208652800,0.8909,4596.9,4596.8,0.0217]
[1758208653304,4.63164214,4596.9,4596.3,0.4036]
[1758208653495,0.3679,4596.3,4596.1,2.3273]
[1758208653698,0.8909,4596.2,4596.1,2.6029]
[1758208654204,1.42424947,4596.2,4596.1,2.6029]
[1758208654601,1.05634947,4596.2,4596.1,2.6029]
[1758208654802,0.523,4596.2,4596.1,2.8627]
[1758208655004,0.523,4596.2,4596.1,0.939]
[1758208655204,0.53367616,4596.4,4596.1,0.939]
[1758208655506,0.53367265,4596.3,4596.2,0.9479]
[1758208655897,0.223,4596.6,4596.3,0.3951]
[1758208656098,0.4986,4596.6,4596.5,1.0967]
[1758208656501,1.03251356,4596.6,4596.5,1.0967]
[1758208656898,1.87383648,4596.6,4596.0,0.552]
[1758208657106,0.5253,4596.1,4596.0,0.8261]
[1758208657307,1.05921356,4596.1,4596.0,0.8261]
[1758208657501,1.41551356,4596.1,4596.0,0.8261]
[1758208658208,1.65128993,4596.1,4596.0,0.8261]
[1758208659605,1.87428993,4596.1,4596.0,0.8261]
[1758208661107,1.26828993,4596.1,4596.0,1.0963]
[1758208661308,0.99268993,4596.1,4596.0,1.0963]
[1758208662409,1.26828993,4596.1,4596.0,1.0963]
[1758208663309,1.26916968,4596.1,4596.0,1.0963]
[1758208663508,0.99356968,4596.1,4596.0,1.0963]
[1758208664409,1.26916968,4596.1,4596.0,1.0963]
[1758208664601,1.87516968,4596.1,4596.0,0.6692]
[1758208664810,0.8816,4595.9,4595.8,0.4168]
[1758208665107,0.8816,4595.9,4595.3,5.1315]
[1758208665108,0.8599,4595.4,4595.3,1.9237]
[1758208665308,1.85346968,4595.4,4595.3,1.9237]
[1758208665909,1.85346968,4595.4,4594.8,3.6029]
[1758208666108,0.5253,4594.9,4594.8,3.877]
[1758208666305,1.31955612,4594.9,4594.8,0.3951]
[1758208666510,1.85346968,4594.9,4594.8,0.3951]
[1758208666808,0.5253,4594.6,4594.5,0.4314]
[1758208667006,1.29586968,4594.6,4594.5,0.8265]
[1758208667206,1.63046968,4594.6,4594.5,0.8265]
[1758208667809,1.04616968,4594.6,4594.5,1.0967]
[1758208668008,0.77056968,4594.6,4594.5,1.0967]
[1758208668213,0.53391356,4594.6,4594.5,1.0967]
[1758208668813,0.223,4595.0,4594.7,0.5443]
[1758208669008,0.53643316,4594.9,4594.8,0.9394]
[1758208670318,0.223,4595.0,4594.8,0.5443]
[1758208670517,0.223,4595.0,4594.9,0.9394]
[1758208670707,3.4308,4595.4,4595.3,0.9394]
[1758208670910,4.20347319,4595.4,4595.3,0.9394]
[1758208671410,0.3346,4595.3,4595.1,0.3951]
[1758208671617,1.39625778,4595.2,4594.6,0.3951]
[1758208671914,3.4308,4595.4,4594.5,0.5524]
[1758208671915,4.84034732,4595.1,4594.5,0.5524]
[1758208672123,0.8599,4594.6,4594.2,1.9237]
[1758208672323,0.3346,4594.3,4594.2,1.9237]
[1758208672523,1.63214508,4594.3,4594.2,1.9237]
[1758208673916,1.63214508,4594.3,4593.7,0.3951]
[1758208674115,0.2756,4593.8,4593.7,0.9394]
[1758208674316,0.4986,4593.8,4593.7,0.9394]
[1758208674816,0.7483,4593.8,4593.7,0.9394]
[1758208675014,1.0744,4593.8,4593.7,0.3951]
[1758208675215,0.7483,4593.8,4593.7,0.6447]
[1758208675417,0.7483,4593.8,4593.7,0.9163]
[1758208676223,1.0744,4593.8,4593.6,0.402]
[1758208676519,1.0744,4593.8,4593.1,1.9237]
[1758208676716,3.7309,4593.7,4593.6,0.9232]
[1758208677223,3.4589,4593.7,4593.6,0.9232]
[1758208677914,3.6819,4593.7,4593.6,0.9232]
[1758208678620,3.4308,4593.7,4593.6,0.9232]
[1758208679016,3.2078,4593.7,4593.6,0.9232]
[1758208679217,3.4589,4594.3,4594.2,0.9232]
[1758208679417,3.6819,4594.3,4594.2,0.9232]
[1758208679718,0.223,4594.3,4594.2,0.9232]
[1758208679917,3.2078,4595.1,4594.2,0.5212]
[1758208680118,0.7461,4595.0,4594.9,0.2496]
[1758208680318,0.7461,4595.0,4594.9,0.6516]
[1758208680734,0.5231,4595.0,4594.9,0.6516]
[1758208680923,0.7461,4595.0,4594.9,0.9232]
[1758208681118,0.5231,4595.0,4594.9,0.9232]
[1758208681423,0.7461,4595.0,4594.9,0.9232]
[1758208681625,0.223,4595.0,4594.9,0.9232]
[1758208682118,1.0722,4595.0,4594.9,0.402]
[1758208682325,0.5231,4594.6,4594.5,0.8097]
[1758208682527,0.7461,4594.6,4594.5,0.8097]
[1758208682716,0.7461,4594.6,4594.5,1.0813]
[1758208682922,0.3261,4595.8,4594.5,4.2891]
[1758208683120,0.3261,4595.8,4595.0,1.0813]
[1758208683121,0.4741,4595.1,4595.0,1.0813]
[1758208683624,0.2511,4595.1,4595.0,1.0813]
[1758208684021,3.2078,4595.9,4595.1,0.6516]
[1758208684227,35.481,4595.2,4595.1,0.9232]
[1758208684521,3.2078,4595.9,4595.8,0.9232]
[1758208684718,3.4308,4595.9,4595.8,0.9232]
[1758208684915,3.9539,4595.9,4595.8,0.9232]
[1758208685116,3.9539,4595.9,4595.5,0.1581]
[1758208685117,4.28,4595.9,4595.5,0.1581]
[1758208685322,0.5231,4595.6,4595.5,0.5601]
[1758208685627,0.7461,4595.6,4595.5,0.8087]
[1758208686024,0.223,4595.6,4595.5,1.0589]
[1758208686622,0.4721,4595.6,4595.5,1.0589]
[1758208687320,0.223,4595.6,4595.5,1.0589]
[1758208687520,3.2078,4595.9,4595.6,0.3813]
[1758208687720,3.2078,4595.9,4595.8,0.4988]
[1758208687916,3.4308,4595.9,4595.8,0.8801]
[1758208688925,3.2078,4595.9,4595.8,0.8801]
[1758208689330,3.4308,4595.9,4595.8,0.8801]
[1758208689525,3.2078,4595.9,4595.8,0.8801]
[1758208689830,3.4308,4595.9,4595.8,0.8801]
[1758208690622,3.2078,4596.7,4595.9,0.3813]
[1758208690931,0.2491,4596.2,4596.1,0.8801]
[1758208691433,0.4711,4596.2,4596.1,0.8801]
[1758208692327,3.2078,4596.7,4596.6,0.2486]
[1758208692632,3.6789,4596.7,4596.6,0.8801]
[1758208693831,3.9353,4596.7,4596.6,0.8801]
[1758208694132,3.6789,4596.7,4596.6,0.8801]
[1758208694730,3.4298,4596.7,4596.6,0.8801]
[1758208694924,3.6789,4596.7,4596.6,0.8801]
[1758208695529,0.4711,4596.7,4596.6,0.8801]
[1758208696632,0.7275,4597.9,4597.8,0.2486]
[1758208696832,1.0486,4597.9,4597.8,0.6299]
[1758208697328,0.7275,4597.9,4597.8,0.8801]
[1758208697733,1.0486,4597.9,4597.8,0.3813]
[1758208698334,0.8266,4597.3,4597.2,0.3813]
[1758208698526,0.5055,4597.3,4597.0,0.1621]
[1758208698721,0.222,4597.4,4597.2,0.4988]
[1758208699033,0.222,4597.4,4597.3,0.8801]
[1758208699233,0.222,4597.4,4597.3,4.0879]
[1758208699731,0.3211,4598.2,4597.3,3.7066]
[1758208699936,0.6245,4598.1,4598.0,0.792]
[1758208700735,0.6245,4598.1,4598.0,1.0422]
[1758208702325,0.3681,4598.1,4598.0,1.0422]
[1758208703230,0.6245,4598.1,4598.0,1.0422]
[1758208706031,0.9456,4598.1,4598.0,1.0422]
[1758208706742,0.9456,4598.1,4598.0,0.792]
[1758208706930,0.9456,4598.1,4598.0,0.6299]
[1758208707137,0.6245,4598.1,4598.0,1.0422]
[1758208708046,0.3681,4598.1,4598.0,1.0422]
[1758208709531,0.6245,4598.1,4598.0,1.0422]
[1758208710142,0.119,4598.1,4598.0,1.0422]
[1758208711645,3.2078,4598.5,4598.4,0.4988]
[1758208711846,3.4569,4598.5,4598.4,0.8801]
[1758208712242,3.2078,4598.5,4598.4,0.8801]
[1758208712741,3.4569,4598.5,4598.4,0.8801]
[1758208713046,3.7133,4598.5,4598.4,0.8801]
[1758208713238,3.2078,4598.5,4598.4,0.8801]
[1758208713442,0.222,4598.6,4598.5,1.0422]
[1758208713638,3.4298,4599.1,4599.0,1.0422]
[1758208714142,0.45,4599.4,4599.0,1.0422]
[1758208714339,0.45,4599.4,4599.3,0.4988]
[1758208714534,3.2078,4600.7,4600.1,0.3813]
[1758208714737,0.222,4600.6,4600.5,1.0422]
[1758208714933,1.1223,4600.6,4600.5,1.0422]
[1758208715135,1.1223,4600.6,4600.5,0.4988]
[1758208715346,1.1223,4600.6,4600.5,0.2486]
[1758208716338,0.2601,4600.2,4600.1,0.8795]
[1758208716843,0.3887,4601.1,4600.7,0.249]
[1758208717045,0.9153,4600.9,4600.8,0.8795]
[1758208717343,0.3887,4600.8,4600.3,3.571]
[1758208717547,0.2601,4600.4,4600.3,4.0873]
[1758208719444,0.222,4600.7,4600.3,4.0873]
[1758208719745,0.222,4600.7,4600.6,0.8795]
[1758208720838,3.4298,4601.2,4600.6,0.5163]
[1758208721043,3.9564,4601.2,4601.1,0.5163]
[1758208721243,4.88157192,4601.2,4601.1,0.8795]
[1758208721856,3.96627192,4601.2,4601.1,0.8795]
[1758208722149,0.3887,4601.6,4601.0,0.1482]
[1758208722150,4.1231,4601.7,4601.6,0.8795]
[1758208722351,4.8814814,4601.7,4601.6,0.8795]
[1758208723251,4.0042814,4601.7,4601.6,0.8795]
[1758208723442,4.2262814,4601.7,4601.6,0.8795]
[1758208723647,0.222,4601.7,4601.6,0.8795]
[1758208724048,0.4821,4601.7,4601.6,0.8795]
[1758208724450,1.67345807,4601.7,4601.6,0.249]
[1758208724949,1.67345807,4601.7,4601.6,0.8795]
[1758208725144,1.01825807,4601.7,4601.6,0.8795]
[1758208725351,0.75815807,4601.7,4601.6,0.8795]
[1758208725750,1.01825807,4601.7,4601.6,0.8795]